fUSD/lending_fUSD_20240222
["ID","MTS","AMOUNT","RATE_DAILY","PERIOD"]
[314871284,1708603854155,-645.6,0.0003315,4]
[314871285,1708603854165,-500.0,0.0003315,4]
[314871286,1708603854175,-510.37,0.0003315,4]
[314871287,1708603854185,-500.15,0.0003315,4]
[314871288,1708603854196,-500.0,0.0003315,4]
[314871289,1708603854206,-512.49280735,0.0003315,4]
[314871290,1708603854216,-500.0,0.0003315,4]
[314871291,1708603854226,-500.0,0.0003315,4]
[314871292,1708603854236,-500.0,0.0003315,4]
[314871293,1708603854246,-500.0,0.0003315,4]
[314871294,1708603854259,-731.12,0.0003315,4]
[314871295,1708603854271,-512.73760738,0.0003315,4]
[314871296,1708603854283,-500.0,0.0003315,4]
[314871297,1708603854293,-519.27,0.0003315,4]
[314871298,1708603854304,-12240.27,0.0003315,4]
[314871299,1708603854315,-500.0,0.0003315,4]
[314871300,1708603854325,-621.25,0.0003315,4]
[314871301,1708603854335,-500.0,0.0003315,4]
[314871302,1708603854345,-674.1,0.0003315,4]
[314871303,1708603854355,-500.0,0.0003315,4]
[314871304,1708603854366,-500.0,0.0003315,4]
[314871305,1708603854376,-500.0,0.0003315,4]
[314871306,1708603854388,-500.0,0.0003315,4]
[314871307,1708603854398,-500.0,0.0003315,4]
[314871308,1708603854409,-500.0,0.0003315,4]
[314871309,1708603854419,-200.33,0.0003315,4]
[314871310,1708603854428,-500.0,0.0003315,4]
[314871311,1708603854438,-500.0,0.0003315,4]
[314871312,1708603854449,-500.0,0.0003315,4]
[314871313,1708603854459,-500.0,0.0003315,4]
[314871314,1708603854469,-500.0,0.0003315,4]
[314871315,1708603854479,-500.0,0.0003315,4]
[314871316,1708603854489,-502.34,0.0003315,4]
[314871317,1708603854499,-500.0,0.0003315,4]
[314871318,1708603854509,-500.0,0.0003315,4]
[314871319,1708603854518,-500.0,0.0003315,4]
[314871320,1708603854528,-500.0,0.0003315,4]
[314871321,1708603854538,-975.85,0.0003315,4]
[314871322,1708603854548,-500.0,0.0003315,4]
[314871323,1708603854558,-500.0,0.0003315,4]
[314871324,1708603854567,-500.0,0.0003315,4]
[314871325,1708603854577,-500.0,0.0003315,4]
[314871326,1708603854586,-500.0,0.0003315,4]
[314871327,1708603854596,-654.19,0.0003315,4]
[314871328,1708603854606,-500.0,0.0003315,4]
[314871329,1708603854616,-1056.83,0.0003315,4]
[314871330,1708603854625,-500.0,0.0003315,4]
[314871331,1708603854635,-500.0,0.0003315,4]
[314871332,1708603854644,-712.72,0.0003315,4]
[314871333,1708603854654,-500.0,0.0003315,4]
[314871334,1708603854664,-500.0,0.0003315,4]
[314871335,1708603854673,-1095.79,0.0003315,4]
[314871336,1708603854683,-500.0,0.0003315,4]
[314871337,1708603854693,-500.0,0.0003315,4]
[314871338,1708603854703,-1610.93,0.0003315,4]
[314871339,1708603854713,-500.0,0.0003315,4]
[314871340,1708603854723,-576.75,0.0003315,4]
[314871341,1708603854733,-500.0,0.0003315,4]
[314871342,1708603854743,-500.0,0.0003315,4]
[314871343,1708603854753,-516.39195121,0.0003315,4]
[314871344,1708603854764,-500.0,0.0003315,4]
[314871345,1708603854773,-500.0,0.0003315,4]
[314871346,1708603854783,-500.0,0.0003315,4]
[314871347,1708603854793,-500.0,0.0003315,4]
[314871348,1708603854803,-572.57,0.0003315,4]
[314871349,1708603854813,-1398.7,0.0003315,4]
[314871350,1708603854823,-500.0,0.0003315,4]
[314871351,1708603854833,-2981.61,0.0003315,4]
[314871352,1708603854844,-4255.25,0.0003315,4]
[314871353,1708603854854,-500.0,0.0003315,4]
[314871354,1708603854864,-691.2,0.0003315,4]
[314871355,1708603854875,-500.85,0.0003315,4]
[314871356,1708603854886,-579.25,0.0003315,4]
[314871357,1708603854897,-500.0,0.0003315,4]
[314871358,1708603854908,-2307.06,0.0003315,4]
[314871359,1708603854920,-5140.33,0.0003315,4]
[314871360,1708603854932,-708.29,0.0003315,4]
[314871361,1708603854942,-2500.5,0.0003315,4]
[314871362,1708603854953,-500.0,0.0003315,4]
[314871363,1708603854964,-500.0,0.0003315,4]
[314871364,1708603854975,-1165.99,0.0003315,4]
[314871365,1708603854986,-500.0,0.0003315,4]
[314871366,1708603854997,-631.9,0.0003315,4]
[314871367,1708603855008,-500.0,0.0003315,4]
[314871368,1708603855020,-500.0,0.0003315,4]
[314871369,1708603855031,-857.84,0.0003315,4]
[314871370,1708603855043,-500.0,0.0003315,4]
[314871371,1708603855054,-558.39,0.0003315,4]
[314871372,1708603855064,-626.11,0.0003315,4]
[314871373,1708603855086,-951.56,0.0003315,4]
[314871374,1708603855097,-798.09,0.0003315,4]
[314871375,1708603855108,-3024.54,0.0003315,4]
[314871376,1708603855119,-6808.19,0.0003315,4]
[314871377,1708603855130,-500.0,0.0003315,4]
[314871378,1708603855140,-500.0,0.0003315,4]
[314871379,1708603855152,-500.0,0.0003315,4]
[314871380,1708603855162,-762.85,0.0003315,4]
[314871381,1708603855173,-787.61,0.0003315,4]
[314871382,1708603855185,-178.38267132,0.0003315,4]
[314871383,1708603855196,-1709.86,0.0003315,4]
[314871384,1708603855207,-744.97,0.0003315,4]
[314871385,1708603855219,-500.0,0.0003315,4]
[314871386,1708603855231,-500.0,0.0003315,4]
[314871387,1708603855242,-1145.8,0.0003315,4]
[314871388,1708603855252,-500.0,0.0003315,4]
[314871389,1708603855263,-500.0,0.0003315,4]
[314871390,1708603855274,-500.0,0.0003315,4]
[314871391,1708603855286,-500.0,0.0003315,4]
[314871392,1708603855297,-2312.26,0.0003315,4]
[314871393,1708603855308,-3669.04,0.0003315,4]
[314871394,1708603855319,-500.0,0.0003315,4]
[314871395,1708603855331,-500.0,0.0003315,4]
[314871396,1708603855342,-3644.82,0.0003315,4]
[314871397,1708603855353,-2057.72,0.0003315,4]
[314871398,1708603855364,-500.0,0.0003315,4]
[314871399,1708603855375,-500.0,0.0003315,4]
[314871400,1708603855387,-1073.5,0.0003315,4]
[314871401,1708603855398,-500.0,0.0003315,2]
[314871402,1708603855409,-500.0,0.0003315,4]
[314871403,1708603855420,-500.0,0.0003315,4]
[314871404,1708603855432,-500.0,0.0003315,4]
[314871405,1708603855444,-500.0,0.0003315,4]
[314871406,1708603855458,-500.0,0.0003315,4]
[314871407,1708603855470,-500.0,0.0003315,4]
[314871408,1708603855482,-2183.75,0.0003315,4]
[314871409,1708603855492,-36466.42,0.0003315,4]
[314871410,1708603855505,-500.0,0.0003315,4]
[314871411,1708603855517,-606.66304765,0.0003315,4]
[314871412,1708603855530,-10609.85,0.0003315,4]
[314871413,1708603855542,-8476.39,0.0003315,4]
[314871414,1708603855554,-500.0,0.0003315,4]
[314871415,1708603855567,-500.0,0.0003315,4]
[314871416,1708603855579,-275.21762122,0.0003315,4]
[314871417,1708603855591,-547.87,0.0003315,4]
[314871418,1708603855602,-1088.16,0.0003315,4]
[314871419,1708603855614,-1164.65,0.0003315,4]
[314871420,1708603855626,-699.33,0.0003315,4]
[314871421,1708603855639,-565.4,0.0003315,4]
[314871422,1708603855650,-982.18,0.0003315,4]
[314871423,1708603855661,-500.0,0.0003315,4]
[314871424,1708603855673,-500.0,0.0003315,4]
[314871425,1708603855685,-2287.69,0.0003315,4]
[314871426,1708603855697,-1341.34,0.0003315,4]
[314871427,1708603855717,-500.0,0.0003315,4]
[314871428,1708603855743,-710.52,0.0003315,4]
[314871429,1708603855754,-500.0,0.0003315,4]
[314871430,1708603855766,-500.0,0.0003315,4]
[314871431,1708603855779,-500.0,0.0003315,4]
[314871432,1708603855790,-1962.81,0.0003315,4]
[314871433,1708603855802,-500.0,0.0003315,4]
[314871434,1708603855813,-7867.6,0.0003315,4]
[314871435,1708603855824,-500.0,0.0003315,4]
[314871436,1708603855835,-825.01,0.0003315,4]
[314871437,1708603855847,-1961.91,0.0003315,4]
[314871438,1708603855858,-500.0,0.0003315,4]
[314871439,1708603855869,-3059.39,0.0003315,4]
[314871440,1708603855880,-1398.05,0.0003315,4]
[314871441,1708603855892,-10507.97,0.0003315,4]
[314871442,1708603855904,-500.0,0.0003315,4]
[314871443,1708603855916,-516.64,0.0003315,4]
[314871444,1708603855928,-500.0,0.0003315,4]
[314871445,1708603855940,-1029.47,0.0003315,4]
[314871446,1708603855951,-545.96,0.0003315,4]
[314871447,1708603855962,-500.0,0.0003315,4]
[314871448,1708603855974,-790.6,0.0003315,4]
[314871449,1708603855987,-1349.03,0.0003315,4]
[314871450,1708603855998,-1595.45,0.0003315,4]
[314871451,1708603856010,-1459.49,0.0003315,4]
[314871452,1708603856021,-1332.16,0.0003315,4]
[314871453,1708603856032,-584.3,0.0003315,4]
[314871454,1708603856044,-500.0,0.0003315,4]
[314871455,1708603856055,-500.0,0.0003315,4]
[314871456,1708603856067,-823.77,0.0003315,4]
[314871457,1708603856079,-6707.09,0.0003315,4]
[314871458,1708603856092,-7482.86,0.0003315,4]
[314871459,1708603856104,-1994.47,0.0003315,4]
[314871460,1708603856116,-500.0,0.0003315,4]
[314871461,1708603856127,-571.85,0.0003315,4]
[314871462,1708603856138,-500.0,0.0003315,4]
[314871463,1708603856150,-923.51,0.0003315,4]
[314871464,1708603856161,-500.0,0.0003315,4]
[314871465,1708603856172,-831.24,0.0003315,4]
[314871466,1708603856183,-875.09,0.0003315,4]
[314871467,1708603856194,-458.64395579,0.0003315,4]
[314871468,1708603856206,-856.7,0.0003315,4]
[314871469,1708603856217,-634.55,0.0003315,4]
[314871470,1708603856228,-2630.51,0.0003315,4]
[314871471,1708603856239,-500.0,0.0003315,4]
[314871472,1708603856250,-827.61,0.0003315,4]
[314871473,1708603856262,-500.0,0.0003315,4]
[314871474,1708603856275,-2047.9,0.0003315,4]
[314871475,1708603856290,-622.27,0.0003315,4]
[314871476,1708603856302,-702.13,0.0003315,4]
[314871477,1708603856313,-500.0,0.0003315,4]
[314871478,1708603856326,-500.0,0.0003315,4]
[314871479,1708603856338,-500.0,0.0003315,4]
[314871480,1708603856349,-1284.3,0.0003315,4]
[314871481,1708603856361,-503.74,0.0003315,4]
[314871482,1708603856373,-637.78,0.0003315,4]
[314871483,1708603856383,-500.0,0.0003315,4]
[314871484,1708603856395,-15712.82,0.0003315,4]
[314871485,1708603856407,-1099.34,0.0003315,4]
[314871486,1708603856418,-530.39,0.0003315,4]
[314871487,1708603856429,-527.03,0.0003315,4]
[314871488,1708603856440,-1158.3,0.0003315,4]
[314871489,1708603856452,-500.0,0.0003315,4]
[314871490,1708603856464,-1315.82,0.0003315,4]
[314871491,1708603856476,-537.02,0.0003315,4]
[314871492,1708603856489,-762.1,0.0003315,4]
[314871493,1708603856508,-875.36,0.0003315,4]
[314871494,1708603856524,-1167.22,0.0003315,4]
[314871495,1708603856538,-897.91,0.0003315,4]
[314871496,1708603856554,-3630.56,0.0003315,4]
[314871497,1708603856566,-610.48,0.0003315,4]
[314871498,1708603856577,-1218.08,0.0003315,4]
[314871499,1708603856591,-1121.05,0.0003315,4]
[314871500,1708603856605,-1885.35,0.0003315,4]
[314871501,1708603856619,-953.21,0.0003315,4]
[314871502,1708603856633,-500.0,0.0003315,4]
[314871503,1708603856647,-3994.98,0.0003315,4]
[314871504,1708603856662,-536.69,0.0003315,4]
[314871505,1708603856673,-500.0,0.0003315,4]
[314871506,1708603856685,-500.0,0.0003315,4]
[314871507,1708603856700,-1175.47,0.0003315,4]
[314871508,1708603856712,-500.0,0.0003315,4]
[314871509,1708603856725,-1243.83,0.0003315,4]
[314871510,1708603856739,-500.0,0.0003315,4]
[314871511,1708603856752,-500.0,0.0003315,4]
[314871512,1708603856765,-500.0,0.0003315,4]
[314871513,1708603856775,-2554.69,0.0003315,4]
[314871514,1708603856787,-500.0,0.0003315,4]
[314871515,1708603856802,-3614.95,0.0003315,4]
[314871516,1708603856813,-674.11,0.0003315,4]
[314871517,1708603856828,-2513.46,0.0003315,4]
[314871518,1708603856841,-1202.54,0.0003315,4]
[314871519,1708603856852,-1841.26,0.0003315,4]
[314871520,1708603856865,-500.0,0.0003315,4]
[314871521,1708603856877,-500.0,0.0003315,4]
[314871522,1708603856889,-965.69,0.0003315,4]
[314871523,1708603856903,-812.77,0.0003315,4]
[314871524,1708603856916,-500.0,0.0003315,4]
[314871525,1708603856930,-749.09,0.0003315,4]
[314871526,1708603856942,-590.69,0.0003315,4]
[314871527,1708603856954,-1582.83,0.0003315,4]
[314871528,1708603856966,-500.0,0.0003315,2]
[314871529,1708603856977,-1577.86,0.0003315,4]
[314871530,1708603856989,-969.46,0.0003315,4]
[314871531,1708603857001,-861.11,0.0003315,4]
[314871532,1708603857013,-500.0,0.0003315,4]
[314871533,1708603857028,-2019.36,0.0003315,4]
[314871534,1708603857040,-6783.79,0.0003315,4]
[314871535,1708603857051,-2057.92,0.0003315,4]
[314871536,1708603857062,-500.0,0.0003315,4]
[314871537,1708603857072,-637.18,0.0003315,4]
[314871538,1708603857083,-1230.88,0.0003315,4]
[314871539,1708603857095,-500.0,0.0003315,4]
[314871540,1708603857106,-2395.80752026,0.0003315,4]
[314871541,1708603857140,-433.44288726,0.0003315,4]
[314871542,1708603857154,-438.84959248,0.0003315,4]
[314871543,1708603857166,-500.0,0.0003315,4]
[314871544,1708603857179,-500.0,0.0003315,4]
[314871545,1708603857201,-907.47,0.0003315,4]
[314871546,1708603857214,-528.33,0.0003315,4]
[314871547,1708603857226,-1463.38,0.0003315,4]
[314871548,1708603857239,-683.52,0.0003315,4]
[314871549,1708603857251,-1472.92,0.0003315,4]
[314871550,1708603857262,-1190.79,0.0003315,4]
[314871551,1708603857274,-500.0,0.0003315,4]
[314871552,1708603857290,-500.0,0.0003315,4]
[314871553,1708603857302,-10716.4,0.0003315,4]
[314871554,1708603857314,-435.12046517,0.0003315,4]
[314871555,1708603857326,-2372.29,0.0003315,4]
[314871556,1708603857338,-1232.96,0.0003315,4]
[314871557,1708603857349,-535.28,0.0003315,4]
[314871558,1708603857362,-459.90765373,0.0003315,4]
[314871559,1708603857377,-363.87234627,0.0003315,4]
[314871560,1708603857389,-910.68,0.0003315,4]
[314871561,1708603857401,-792.61,0.0003315,4]
[314871562,1708603857413,-979.67,0.0003315,4]
[314871563,1708603857425,-4207.23,0.0003315,4]
[314871564,1708603857437,-1646.13,0.0003315,4]
[314871565,1708603857450,-794.69,0.0003315,4]
[314871566,1708603857462,-500.0,0.0003315,4]
[314871567,1708603857473,-1760.32204726,0.0003315,4]
[314871568,1708603857489,-4391.44795274,0.0003315,4]
[314871569,1708603857500,-613.87,0.0003315,4]
[314871570,1708603857512,-1456.93,0.0003315,4]
[314871571,1708603857524,-500.0,0.0003315,4]
[314871572,1708603857535,-1089.48,0.0003315,4]
[314871573,1708603857547,-1734.74,0.0003315,4]
[314871574,1708603857559,-738.3,0.0003315,4]
[314871575,1708603857570,-500.0,0.0003315,4]
[314871576,1708603857581,-500.0,0.0003315,4]
[314871577,1708603857593,-771.49,0.0003315,4]
[314871578,1708603857604,-5019.23555726,0.0003315,4]
[314871579,1708603857620,-1267.50444274,0.0003315,4]
[314871580,1708603857631,-800.24,0.0003315,4]
[314871581,1708603857643,-3047.63,0.0003315,4]
[314871582,1708603857654,-5122.69,0.0003315,4]
[314871583,1708603857665,-500.0,0.0003315,4]
[314871584,1708603857677,-682.11,0.0003315,4]
[314871585,1708603857689,-2775.31,0.0003315,4]
[314871586,1708603857700,-5249.21411726,0.0003315,4]
[314871587,1708603859158,-641.99,0.00032166,10]
[314871588,1708603859169,-1021.15243657,0.00032875,4]
[314871589,1708603859419,-607.52872213,0.00032875,4]
[314871590,1708603859431,-500.0,0.00032876,2]
[314871591,1708603859442,-641.99,0.00032954,10]
[314871592,1708603859455,-10637.93588274,0.0003315,4]
[314871593,1708603859468,-1249.6,0.0003315,4]
[314871594,1708603859479,-2147.45,0.0003315,4]
[314871595,1708603859490,-520.58,0.0003315,4]
[314871596,1708603859501,-1162.48,0.0003315,4]
[314871597,1708603859512,-615.64,0.0003315,4]
[314871598,1708603859523,-500.0,0.0003315,4]
[314871599,1708603859534,-500.0,0.0003315,4]
[314871600,1708603859545,-1750.4,0.0003315,4]
[314871601,1708603859557,-714.67,0.0003315,4]
[314871602,1708603859568,-500.0,0.0003315,4]
[314871603,1708603859579,-597.2,0.0003315,4]
[314871604,1708603859590,-500.0,0.0003315,4]
[314871605,1708603859601,-784.54,0.0003315,4]
[314871606,1708603859612,-500.0,0.0003315,4]
[314871607,1708603859623,-7981.24,0.0003315,4]
[314871608,1708603859634,-918.46,0.0003315,4]
[314871609,1708603859645,-358.81537337,0.0003315,4]
[314871610,1708603859656,-1482.38,0.0003315,4]
[314871611,1708603859667,-1028.75,0.0003315,4]
[314871612,1708603859679,-500.0,0.0003315,4]
[314871613,1708603859690,-3118.99,0.0003315,4]
[314871614,1708603859702,-500.0,0.0003315,2]
[314871615,1708603859713,-666.52,0.0003315,4]
[314871616,1708603859724,-931.34,0.0003315,4]
[314871617,1708603859736,-617.95,0.0003315,4]
[314871618,1708603859747,-628.42,0.0003315,4]
[314871619,1708603860469,-500.0,0.0003315,4]
[314871620,1708603860491,-1014.97,0.0003315,4]
[314871621,1708603860513,-500.0,0.0003315,4]
[314871622,1708603860536,-1480.29,0.0003315,4]
[314871623,1708603860553,-500.0,0.0003315,4]
[314871624,1708603860562,-1529.08,0.0003315,4]
[314871625,1708603860571,-5773.23,0.0003315,4]
[314871626,1708603860581,-1104.49,0.0003315,4]
[314871627,1708603860591,-4441.2,0.0003315,4]
[314871628,1708603860602,-1225.66,0.0003315,4]
[314871629,1708603860611,-500.0,0.0003315,4]
[314871630,1708603860622,-1809.63,0.0003315,4]
[314871631,1708603860631,-727.43,0.0003315,4]
[314871632,1708603860642,-763.46,0.0003315,4]
[314871633,1708603860652,-1364.24,0.0003315,4]
[314871634,1708603860662,-500.0,0.0003315,4]
[314871635,1708603860671,-500.0,0.0003315,4]
[314871636,1708603860680,-1587.88,0.0003315,2]
[314871637,1708603860690,-847.34,0.0003315,4]
[314871638,1708603860701,-500.0,0.0003315,4]
[314871639,1708603860712,-161.68,0.00033169,2]
[314871640,1708603860722,-170.66,0.00033233,2]
[314871641,1708603860732,-310.0,0.0003325,2]
[314871642,1708603860743,-760.13,0.00033262,2]
[314871643,1708603860753,-528.41437408,0.00033312,5]
[314871644,1708603860763,-682.91952545,0.00033324,22]
[314871645,1708603860775,-152.0,0.00033373,3]
[314871646,1708603860783,-170.66,0.00033397,2]
[314871647,1708603860793,-338.75279046,0.00033414,2]
[314871648,1708603860802,-500.0,0.00033423,4]
[314871649,1708603860811,-500.0,0.00033423,4]
[314871650,1708603860822,-500.0,0.00033423,4]
[314871651,1708603860831,-500.0,0.00033424,4]
[314871652,1708603860841,-500.0,0.00033424,4]
[314871653,1708603860850,-500.0,0.00033424,4]
[314871654,1708603860859,-500.0,0.00033424,4]
[314871655,1708603860869,-500.0,0.00033424,4]
[314871656,1708603860878,-500.0,0.00033424,4]
[314871657,1708603860887,-500.0,0.00033424,4]
[314871658,1708603860897,-556.22,0.00033424,4]
[314871659,1708603860906,-500.0,0.00033424,4]
[314871660,1708603860917,-248.20913184,0.00033424,4]
[314871661,1708603860927,-500.0,0.00033424,4]
[314871662,1708603860938,-500.0,0.00033424,4]
[314871663,1708603860947,-510.25076391,0.00033424,4]
[314871664,1708603860957,-500.0,0.00033424,4]
[314871665,1708603860967,-500.0,0.00033424,4]
[314871666,1708603860976,-500.0,0.00033424,4]
[314871667,1708603860985,-479.81688703,0.00033424,4]
[314871668,1708603860995,-500.0,0.00033424,4]
[314871669,1708603861004,-500.0,0.00033424,4]
[314871670,1708603861014,-767.15,0.00033424,4]
[314871671,1708603861023,-500.0,0.00033424,4]
[314871672,1708603861032,-500.0,0.00033424,4]
[314871673,1708603861042,-500.0,0.00033424,4]
[314871674,1708603861051,-500.0,0.00033424,4]
[314871675,1708603861060,-500.0,0.00033424,4]
[314871676,1708603861069,-500.0,0.00033424,4]
[314871677,1708603861078,-500.0,0.00033424,4]
[314871678,1708603861087,-500.0,0.00033424,4]
[314871679,1708603861096,-500.0,0.00033424,4]
[314871680,1708603861106,-500.0,0.00033424,4]
[314871681,1708603861115,-500.0,0.00033424,4]
[314871682,1708603861124,-500.0,0.00033424,4]
[314871683,1708603861133,-500.0,0.00033424,4]
[314871684,1708603861143,-500.0,0.00033424,4]
[314871685,1708603861152,-500.0,0.00033424,4]
[314871686,1708603861161,-500.0,0.00033424,4]
[314871687,1708603861171,-532.720766,0.00033424,4]
[314871688,1708603861180,-540.87,0.00033424,4]
[314871689,1708603861190,-500.0,0.00033424,4]
[314871690,1708603861199,-500.0,0.00033424,4]
[314871691,1708603861209,-332.61367763,0.00033424,4]
[314871692,1708603861219,-375.46671586,0.00033424,4]
[314871693,1708603861228,-500.0,0.00033424,4]
[314871694,1708603861238,-500.0,0.00033424,4]
[314871695,1708603861248,-500.0,0.00033424,4]
[314871696,1708603861258,-500.0,0.00033424,4]
[314871697,1708603861267,-500.0,0.00033424,4]
[314871698,1708603861278,-500.0,0.00033424,4]
[314871699,1708603861289,-500.0,0.00033424,4]
[314871700,1708603861299,-500.0,0.00033424,4]
[314871701,1708603861308,-500.0,0.00033424,4]
[314871702,1708603861318,-500.0,0.00033424,4]
[314871703,1708603861327,-500.0,0.00033424,4]
[314871704,1708603861337,-500.0,0.00033424,4]
[314871705,1708603861345,-500.0,0.00033424,4]
[314871706,1708603861355,-500.0,0.00033424,4]
[314871707,1708603861366,-501.72,0.00033424,4]
[314871708,1708603861376,-551.84,0.00033424,4]
[314871709,1708603861385,-520.00204676,0.00033424,4]
[314871710,1708603861395,-500.0,0.00033424,4]
[314871711,1708603861405,-551.70960254,0.00033424,4]
[314871712,1708603861415,-500.0,0.00033424,4]
[314871713,1708603861425,-500.0,0.00033424,4]
[314871714,1708603861436,-500.0,0.00033424,4]
[314871715,1708603861445,-500.0,0.00033424,4]
[314871716,1708603861457,-500.0,0.00033424,4]
[314871717,1708603861467,-500.0,0.00033424,4]
[314871718,1708603861478,-742.01,0.00033424,4]
[314871719,1708603861488,-500.0,0.00033424,4]
[314871720,1708603861497,-500.0,0.00033424,2]
[314871721,1708603861506,-537.48,0.00033424,4]
[314871722,1708603861516,-500.0,0.00033424,4]
[314871723,1708603861526,-500.0,0.00033424,4]
[314871724,1708603861535,-500.0,0.00033424,4]
[314871725,1708603861545,-765.14,0.00033424,4]
[314871726,1708603861556,-500.0,0.00033424,4]
[314871727,1708603861565,-500.0,0.00033424,4]
[314871728,1708603861575,-669.45,0.00033424,4]
[314871729,1708603861585,-500.0,0.00033424,4]
[314871730,1708603861594,-500.0,0.00033424,4]
[314871731,1708603861604,-500.0,0.00033424,4]
[314871732,1708603861614,-500.0,0.00033424,4]
[314871733,1708603861623,-500.0,0.00033424,4]
[314871734,1708603861632,-500.0,0.00033424,4]
[314871735,1708603861642,-880.18,0.00033424,4]
[314871736,1708603861651,-500.0,0.00033424,4]
[314871737,1708603861661,-500.0,0.00033424,4]
[314871738,1708603861671,-500.0,0.00033424,4]
[314871739,1708603861680,-644.89,0.00033424,4]
[314871740,1708603861689,-573.52,0.00033424,4]
[314871741,1708603861699,-500.0,0.00033424,4]
[314871742,1708603861709,-500.0,0.00033424,4]
[314871743,1708603861718,-500.0,0.00033424,4]
[314871744,1708603861727,-853.06,0.00033424,4]
[314871745,1708603861737,-528.13,0.00033424,4]
[314871746,1708603861747,-500.0,0.00033424,4]
[314871747,1708603861757,-622.95,0.00033424,4]
[314871748,1708603861765,-500.0,0.00033424,4]
[314871749,1708603861774,-500.0,0.00033424,4]
[314871750,1708603861783,-528.47,0.00033424,4]
[314871751,1708603861792,-858.35,0.00033424,4]
[314871752,1708603861801,-500.0,0.00033424,4]
[314871753,1708603861810,-500.0,0.00033424,4]
[314871754,1708603861819,-1172.85,0.00033424,4]
[314871755,1708603861828,-722.14,0.00033424,4]
[314871756,1708603861837,-500.0,0.00033424,4]
[314871757,1708603861846,-500.0,0.00033424,4]
[314871758,1708603861855,-1003.13,0.00033424,4]
[314871759,1708603861865,-500.0,0.00033424,4]
[314871760,1708603861874,-500.0,0.00033424,4]
[314871761,1708603861883,-604.05,0.00033424,4]
[314871762,1708603861893,-500.0,0.00033424,4]
[314871763,1708603861903,-543.20527708,0.00033424,4]
[314871764,1708603861913,-500.0,0.00033424,4]
[314871765,1708603861923,-502.23,0.00033424,4]
[314871766,1708603861932,-631.19,0.00033424,4]
[314871767,1708603861942,-581.46,0.00033424,4]
[314871768,1708603861951,-500.0,0.00033424,4]
[314871769,1708603861960,-500.0,0.00033424,4]
[314871770,1708603861970,-500.0,0.00033424,4]
[314871771,1708603861979,-500.0,0.00033424,4]
[314871772,1708603861988,-500.0,0.00033424,4]
[314871773,1708603861998,-760.74,0.00033424,4]
[314871774,1708603862007,-803.85,0.00033424,4]
[314871775,1708603862016,-500.0,0.00033424,4]
[314871777,1708603862026,-629.39,0.00033424,4]
[314871778,1708603862035,-545.44,0.00033424,4]
[314871779,1708603862045,-500.0,0.00033424,4]
[314871780,1708603862054,-806.45,0.00033424,4]
[314871781,1708603862063,-636.27,0.00033424,4]
[314871782,1708603862073,-829.87,0.00033424,4]
[314871783,1708603862082,-500.0,0.00033424,4]
[314871784,1708603862092,-500.0,0.00033424,2]